bitfinex-derivatives/quotes_ETHF0:USTF0_20250505
["timestamp","ask_amount","ask_price","bid_price","bid_amount"]
[1746441752624,6.61192068,1809.1,1809.0,40.8]
[1746441753318,1.10552,1809.0,1808.9,1.10558]
[1746441753522,1.10563,1808.9,1808.8,1.10559]
[1746441753723,4.31343,1808.9,1808.8,1.10559]
[1746441753923,5.88313,1808.9,1808.8,1.10559]
[1746441754326,5.88313,1808.9,1808.8,41.90559]
[1746441755027,5.88313,1808.9,1808.8,41.90565]
[1746441755527,5.88313,1808.9,1808.8,40.8]
[1746441756030,5.88313,1808.9,1808.8,41.90565]
[1746441756534,5.88313,1808.9,1808.8,40.8]
[1746441757831,6.58819068,1808.9,1808.8,40.8]
[1746441761040,23.4936443,1808.9,1808.8,40.8]
[1746441767143,1.10595,1808.3,1808.2,2.5575]
[1746441767441,4.31375,1808.3,1808.2,43.3575]
[1746441767641,5.87995,1808.3,1808.2,43.3575]
[1746441767947,5.87995,1808.3,1808.2,40.8]
[1746441768144,6.30120428,1808.3,1808.2,41.90601]
[1746441769033,0.42125428,1808.3,1808.2,46.90601]
[1746441769239,0.42125428,1808.3,1808.2,48.25571]
[1746441769435,4.31373,1808.4,1808.3,1.10595]
[1746441769636,3.62929253,1808.4,1808.3,4.18415]
[1746441769833,2.82696,1808.5,1808.4,1.10589]
[1746441770036,3.24843259,1808.5,1808.4,2.73269]
[1746441770646,6.45623259,1808.5,1808.4,2.73269]
[1746441770841,6.45623259,1808.5,1808.3,2.55731]
[1746441771047,3.24846259,1808.4,1808.3,2.55731]
[1746441771537,3.24718042,1808.4,1808.3,2.55731]
[1746441771938,2.14129042,1808.4,1808.3,4.18821]
[1746441772138,0.42019042,1808.4,1808.3,4.18821]
[1746441773646,1.12550933,1808.4,1808.3,4.18821]
[1746441774950,2.23139933,1808.4,1808.3,4.18821]
[1746441775251,1.12550933,1808.4,1808.3,4.18821]
[1746441776653,1.12474182,1808.4,1808.3,4.18821]
[1746441776849,1.12474186,1808.4,1808.3,4.18821]
[1746441777954,0.41942295,1808.4,1808.3,4.18821]
[1746441778342,5.90765,1808.5,1808.4,1.10589]
[1746441778543,6.32722021,1808.5,1808.4,2.73489]
[1746441779751,4.73322021,1808.5,1808.4,2.73489]
[1746441780158,4.73435326,1808.5,1808.4,2.73489]
[1746441780351,3.62850326,1808.5,1808.4,2.73489]
[1746441780954,4.73433326,1808.5,1808.4,2.73489]
[1746441781454,3.6280068,1808.5,1808.4,2.73489]
[1746441781651,0.4202068,1808.5,1808.4,2.73489]
[1746441782659,1.5260368,1808.5,1808.4,2.73489]
[1746441782857,1.10583,1808.5,1808.4,2.73489]
[1746441783159,0.42019928,1808.5,1808.4,2.73489]
[1746441783653,3.08952928,1808.5,1808.4,1.10589]
[1746441783850,1.98369928,1808.5,1808.4,2.81539]
[1746441784463,3.08952928,1808.5,1808.4,2.81539]
[1746441784665,1.98288427,1808.5,1808.4,2.81539]
[1746441785162,0.41938427,1808.5,1808.4,6.70239]
[1746441786362,3.2078,1808.7,1808.6,1.10577]
[1746441786659,3.62645873,1808.7,1808.6,1.10577]
[1746441788157,4.73215673,1808.7,1808.6,1.10577]
[1746441788356,7.81355673,1808.7,1808.6,1.10577]
[1746441789364,7.81603427,1808.7,1808.6,1.10577]
[1746441789665,1.10583,1808.6,1808.5,1.10577]
[1746441789963,4.70285427,1808.6,1808.5,1.10577]
[1746441790165,1.10589,1808.4,1808.3,2.55729]
[1746441790365,1.52701427,1808.4,1808.3,1.10589]
[1746441790761,3.21451427,1808.4,1808.3,1.10589]
[1746441791866,2.10862427,1808.4,1808.3,1.10589]
[1746441792061,1.10595,1808.3,1808.2,40.8]
[1746441792366,1.10595,1808.3,1808.2,41.90601]
[1746441792367,2.10862427,1808.3,1808.2,41.90601]
[1746441792963,2.10862427,1808.3,1808.2,43.53841]
[1746441793159,2.1089538,1808.3,1808.2,43.53841]
[1746441794265,3.2149038,1808.3,1808.2,43.53841]
[1746441794767,2.1089538,1808.3,1808.2,41.90601]
[1746441795461,2.1089538,1808.3,1808.2,43.53841]
[1746441796260,4.73025269,1808.4,1808.3,1.10595]
[1746441796460,5.15152793,1808.4,1808.3,1.10595]
[1746441796660,6.84712793,1808.4,1808.3,1.10595]
[1746441796965,5.74122793,1808.4,1808.3,1.10595]
[1746441797168,4.04564164,1808.4,1808.3,2.74475]
[1746441797468,4.04564164,1808.4,1808.3,9.11365]
[1746441797668,4.04560074,1808.4,1808.3,9.11365]
[1746441798167,4.04560074,1808.4,1808.3,4.11365]
[1746441798969,4.04565398,1808.4,1808.3,4.11365]
[1746441799269,4.04565398,1808.4,1808.3,7.94265]
[1746441800363,4.04562763,1808.4,1808.3,7.94265]
[1746441801661,4.04562672,1808.4,1808.3,7.94265]
[1746441802068,0.42127403,1808.4,1808.3,7.94265]
[1746441802973,5.21515269,1808.6,1808.5,1.10583]
[1746441803268,3.62435269,1808.6,1808.5,1.10583]
[1746441803470,3.62435269,1808.6,1808.5,6.10583]
[1746441803676,3.62435269,1808.6,1808.5,9.30593]
[1746441803969,3.62435269,1808.6,1808.5,50.10593]
[1746441804169,7.24217855,1808.8,1808.7,1.10571]
[1746441804363,7.24217855,1808.8,1808.7,4.31351]
[1746441804764,7.24217855,1808.8,1808.7,6.04301]
[1746441804964,7.24217855,1808.8,1808.7,46.84301]
[1746441806375,8.83807855,1808.8,1808.7,41.90571]
[1746441806566,14.94372855,1808.8,1808.7,40.8]
[1746441806761,4.05775,1808.8,1808.7,41.90571]
[1746441806968,2.9521,1808.8,1808.7,41.90571]
[1746441808072,1.5959,1808.8,1808.7,41.90571]
[1746441808277,1.5959,1808.8,1808.7,43.51631]
[1746441808477,1.4604,1809.0,1808.9,1.10558]
[1746441808675,3.1615,1809.0,1808.9,1.10558]
[1746441809071,3.1615,1809.0,1808.9,41.90558]
[1746441809276,1.7011,1809.0,1808.9,41.90558]
[1746441809476,1.7011,1809.0,1808.9,45.00938]
[1746441809778,5.44330164,1809.1,1809.0,1.10552]
[1746441809977,5.44330164,1809.1,1809.0,4.15312]
[1746441810476,5.44330164,1809.1,1809.0,44.95312]
[1746441810681,5.44330164,1809.1,1809.0,48.16092]
[1746441812978,7.11240164,1809.1,1809.0,48.16092]
[1746441813477,7.11240164,1809.1,1809.0,45.11332]
[1746441813679,8.50780164,1809.1,1809.0,41.90552]
[1746441813876,14.61326164,1809.1,1809.0,41.90552]
[1746441814084,14.61326164,1809.1,1809.0,40.8]
[1746441814374,9.61326164,1809.1,1809.0,40.8]
[1746441814579,14.61326164,1809.1,1809.0,40.8]
[1746441814779,9.16996,1809.1,1809.0,40.8]
[1746441817782,1.10583,1808.5,1808.4,7.30871352]
[1746441817983,4.31363,1808.5,1808.4,7.30871352]
[1746441818179,4.31363,1808.5,1808.4,48.10871352]
[1746441818880,6.04433,1808.5,1808.4,40.8]
[1746441819376,6.04433,1808.5,1808.4,41.90589]
[1746441819587,1.7307,1808.5,1808.4,41.90589]
[1746441820288,4.3134,1808.9,1808.8,1.10565]
[1746441820979,4.8031,1808.9,1808.8,1.10565]
[1746441821887,5.90868,1808.9,1808.8,1.10565]
[1746441822185,4.8031,1808.9,1808.8,1.10565]
[1746441823588,5.90868,1808.9,1808.8,1.10565]
[1746441823790,1.10568,1808.8,1808.7,1.10566]
[1746441823995,1.5695,1808.8,1808.7,1.10566]
[1746441827077,1.5695,1808.8,1808.7,2.71616]
[1746441827586,2.9987,1809.0,1808.9,1.10558]
[1746441827783,4.6903,1809.0,1808.9,1.10558]
[1746441829191,5.79582,1809.0,1808.9,1.10558]
[1746441829889,5.79582,1809.0,1808.9,41.90558]
[1746441831785,4.6903,1809.0,1808.9,41.90558]
[1746441832484,1.6916,1809.0,1808.9,41.90558]
[1746441833290,1.6916,1809.0,1808.9,43.48348]
[1746441835288,1.6916,1809.0,1808.9,41.90558]
[1746441835494,4.16592,1809.0,1808.9,41.90558]
[1746441836195,4.16592,1809.0,1808.9,40.8]
[1746441837193,1.10577,1808.6,1808.5,1.10579]
[1746441837783,1.10589,1808.4,1808.3,3.2078]
[1746441837986,1.10599,1808.3,1808.2,1.10596]
[1746441838188,1.5622,1808.3,1808.2,41.90596]
[1746441838589,2.66815,1808.3,1808.2,43.55126]
[1746441838890,2.66815,1808.3,1808.2,41.90596]
[1746441840093,2.66815,1808.3,1808.2,41.90601]
[1746441841696,2.66815,1808.3,1808.2,40.8]
[1746441842596,2.66815,1808.3,1808.2,41.90601]
[1746441843991,1.5622,1808.3,1808.2,41.90601]
[1746441844499,3.2078,1808.4,1808.3,1.10595]
[1746441844698,4.31369,1808.4,1808.3,4.17065]
[1746441844898,5.97649,1808.4,1808.3,4.17065]
[1746441845194,5.97649,1808.4,1808.3,2.50265]
[1746441846296,4.8706,1808.4,1808.3,2.50265]
[1746441846500,4.8706,1808.4,1808.3,4.17065]
[1746441846693,1.6628,1808.4,1808.3,4.17065]
[1746441846888,5.44330164,1808.6,1808.5,1.10583]
[1746441848001,7.15040164,1808.6,1808.5,1.10583]
[1746441848699,1.7071,1808.6,1808.5,1.10583]
[1746441852708,1.10594,1808.4,1808.3,1.10589]
[1746441853003,4.31375,1808.4,1808.3,1.10592]
[1746441853394,5.72215,1808.4,1808.3,1.10592]
[1746441853597,7.44795,1808.4,1808.3,1.10592]
[1746441854506,1.10595,1808.3,1808.2,41.90597]
[1746441854807,4.23355,1808.3,1808.2,41.90597]
[1746441855601,1.10641,1807.6,1807.5,1.10641]
[1746441855803,4.73465222,1807.6,1807.5,1.10641]
[1746441856107,3.62826144,1807.6,1807.5,41.90641]
[1746441856608,2.14926144,1807.6,1807.5,41.90641]
[1746441856807,1.7288,1807.6,1807.5,43.50111]
[1746441858707,2.17997249,1807.6,1807.5,43.50111]
[1746441858903,2.1799712,1807.6,1807.5,43.50111]
[1746441859304,5.3877712,1807.6,1807.5,43.50111]
[1746441860500,5.3877712,1807.6,1807.5,41.90641]
[1746441860704,5.38959264,1807.6,1807.5,41.90641]
[1746441860909,4.9366,1807.6,1807.5,41.90641]
[1746441861109,4.9366,1807.6,1807.5,43.52821]
[1746441861407,1.7288,1807.6,1807.5,43.52821]
[1746441861606,4.6066,1807.8,1807.7,1.10632]
[1746441861807,6.7424797,1807.8,1807.7,1.10632]
[1746441862207,6.7424797,1807.8,1807.7,41.90632]
[1746441862407,7.8487445,1807.8,1807.7,41.90632]
[1746441863311,6.7424845,1807.8,1807.7,41.90632]
[1746441864112,7.8487445,1807.8,1807.7,41.90632]
[1746441866511,12.8487445,1807.8,1807.7,41.90632]
[1746441866811,7.8487445,1807.8,1807.7,41.90632]
[1746441867317,7.8487445,1807.8,1807.7,40.8]
[1746441867520,7.8487445,1807.8,1807.7,41.90632]
[1746441867711,7.85031161,1807.8,1807.7,41.90632]
[1746441868014,7.85031161,1807.8,1807.7,40.8]
[1746441869524,7.84917327,1807.8,1807.7,40.8]
[1746441871224,7.84990011,1807.8,1807.7,40.8]
[1746441873024,7.84937144,1807.8,1807.7,40.8]
[1746441874428,1.10632,1807.7,1807.6,1.11222265]
[1746441874624,4.70343144,1807.7,1807.6,1.11222265]
[1746441874823,4.7033439,1807.7,1807.6,1.11222265]
[1746441875327,4.7033439,1807.7,1807.6,41.91222265]
[1746441876130,4.7033439,1807.7,1807.6,41.91223265]
[1746441877227,4.7033439,1807.7,1807.6,39.24696265]
[1746441877427,4.7033439,1807.7,1806.5,12.2075]
[1746441877428,9.4210239,1807.7,1806.5,12.2075]
[1746441877632,1.10658,1807.3,1807.2,1.10656]
[1746441877831,4.7677039,1807.3,1807.2,41.90656]
[1746441878222,4.76745102,1807.3,1807.2,40.8]
[1746441878531,7.83915102,1807.3,1807.2,41.90662]
[1746441880128,7.84046066,1807.3,1807.2,40.8]
[1746441880326,7.84046066,1807.3,1807.2,41.90662]
[1746441880831,7.84046066,1807.3,1807.2,40.8]
[1746441882132,7.84046066,1807.3,1807.2,41.90662]
[1746441882935,6.44226066,1807.3,1807.2,41.90662]
[1746441883135,5.33568066,1807.3,1807.2,41.90662]
[1746441883327,3.66218066,1807.3,1807.2,41.90662]
[1746441883635,3.66312693,1807.3,1807.2,43.62642]
[1746441884733,3.66158226,1807.3,1807.2,43.62642]
[1746441885435,2.84297,1807.5,1807.4,1.1065]
[1746441885626,3.29707736,1807.5,1807.4,1.1065]
[1746441885827,3.29707736,1807.5,1807.4,2.5682]
[1746441886637,2.19060736,1807.5,1807.4,2.5682]
[1746441886836,3.29704736,1807.5,1807.4,2.5682]
[1746441887225,3.29698915,1807.5,1807.4,2.5682]
[1746441887738,3.29698915,1807.5,1807.4,1.1065]
[1746441887932,1.10656,1807.3,1807.2,43.42287]
[1746441888131,4.76840915,1807.3,1807.2,43.42287]
[1746441888534,4.76840915,1807.3,1807.2,45.02567]
[1746441888733,3.66184915,1807.3,1807.2,43.42287]
[1746441888937,3.66256725,1807.3,1807.2,45.02567]
[1746441889141,0.45476725,1807.3,1807.2,45.02567]
[1746441889937,0.45476725,1807.3,1807.2,50.02567]
[1746441890134,0.45476725,1807.3,1807.2,45.02567]
[1746441890739,1.10652,1807.4,1807.3,1.1065]
[1746441891036,0.45611438,1807.4,1807.3,2.7728]
[1746441892134,1.56261438,1807.4,1807.3,2.7728]
[1746441892444,1.53048514,1807.4,1807.3,2.7728]
[1746441893834,1.10656,1807.3,1807.2,43.42286]
[1746441894149,1.5306668,1807.3,1807.2,41.90656]
[1746441894345,3.1004668,1807.3,1807.2,41.90656]
[1746441894841,3.1004668,1807.3,1807.2,43.50546]
[1746441895232,3.10058461,1807.3,1807.2,43.50546]
[1746441895840,3.10058461,1807.3,1807.2,40.8]
[1746441896143,18.64178461,1807.3,1807.2,40.8]
[1746441896536,18.21756,1807.3,1807.2,40.8]
[1746441896845,18.6418888,1807.3,1807.2,40.8]
[1746441898032,18.64177925,1807.3,1807.2,40.8]
[1746441898541,13.64177925,1807.3,1807.2,40.8]
[1746441898744,18.64177925,1807.3,1807.2,40.8]
[1746441899046,13.64177925,1807.3,1807.2,40.8]
[1746441899943,13.64177925,1807.3,1806.7,1.10691]
[1746441900149,13.64177925,1807.3,1806.4,5.68695]
[1746441900150,1.10699,1806.7,1806.6,1.10697]
[1746441900353,0.42421925,1806.7,1806.6,1.10697]
[1746441900644,0.42421925,1806.7,1806.6,41.90697]
[1746441901053,2.09471925,1806.7,1806.6,41.90699]
[1746441901247,3.20164925,1806.7,1806.6,41.90699]
[1746441901551,3.20164925,1806.7,1806.6,40.8]
[1746441901750,3.20164925,1806.7,1806.6,41.90699]
[1746441902749,3.20122519,1806.7,1806.6,41.90699]
[1746441903951,2.09429519,1806.7,1806.6,41.90699]
[1746441904452,3.20122519,1806.7,1806.6,41.90699]
[1746441904655,1.53072519,1806.7,1806.6,41.90699]
[1746441904952,0.42379519,1806.7,1806.6,41.90699]
[1746441905351,1.53072519,1806.7,1806.6,41.90699]
[1746441905947,3.18862519,1806.7,1806.6,41.90699]
[1746441906355,0.42274048,1806.7,1806.6,41.90699]
[1746441907452,0.42274048,1806.7,1806.6,46.90699]
[1746441907649,3.2078,1807.0,1806.9,1.10681]
[1746441907955,5.42587867,1807.1,1807.0,1.10675]
[1746441908142,5.84732307,1807.1,1807.0,1.10675]
[1746441908346,5.84732307,1807.1,1807.0,41.90675]
[1746441908643,5.42587867,1807.1,1807.0,45.11455]
[1746441908849,5.42587867,1807.1,1807.0,50.11455]
[1746441909155,5.42587867,1807.1,1807.0,51.81115]
[1746441909453,5.42587867,1807.1,1807.0,43.60335]
[1746441909651,5.42587867,1807.1,1807.0,45.02495]
[1746441911242,5.42587867,1807.1,1807.0,50.02495]
[1746441911456,5.42587867,1807.1,1807.0,53.23275]
[1746441911654,5.92855,1807.4,1807.1,1.10669]
[1746441911851,3.2078,1807.6,1807.5,1.10644]
[1746441912049,3.62705971,1807.6,1807.5,1.10644]
[1746441912245,5.42587867,1807.8,1807.7,1.10632]
[1746441912442,5.42587867,1807.8,1807.7,8.13712]
[1746441912758,1.23587693,1807.9,1807.8,1.10626]
[1746441912949,9.00465752,1808.0,1807.9,1.1062]
[1746441913150,9.00465752,1808.0,1807.9,4.314]
[1746441913351,9.00465752,1808.0,1807.9,46.7186]
[1746441913657,9.00465752,1808.0,1807.9,51.7186]
[1746441913955,7.65486752,1808.0,1807.9,51.7186]
[1746441914848,7.65486752,1808.0,1807.9,46.7186]
[1746441915151,7.65486752,1808.0,1807.9,43.5108]
[1746441915357,7.65486752,1808.0,1807.9,47.3328]
[1746441915947,7.65486752,1808.0,1807.9,46.7186]
[1746441916249,1.10609,1808.1,1808.0,1.10613]
[1746441916557,1.6127,1808.1,1808.0,1.10613]
[1746441917152,1.6127,1808.1,1808.0,41.90613]
[1746441918747,10.92657,1808.1,1808.0,40.8]
[1746441919857,1.10636,1807.7,1807.5,1.10643]
[1746441920057,1.10636,1807.7,1807.6,1.10638]
[1746441920357,1.10639,1807.6,1807.5,1.10639]
[1746441920655,1.10637,1807.7,1807.6,1.10637]
[1746441921451,1.10633,1807.8,1807.7,1.10628]
[1746441921650,4.08196,1807.9,1807.8,1.10626]
[1746441922059,1.1063,1807.8,1807.7,1.10628]
[1746441923361,1.10624,1807.9,1807.8,1.10626]
[1746441923560,4.31399,1808.0,1807.9,1.1062]
[1746441924057,1.10619,1808.0,1807.9,1.1062]
[1746441924558,8.5209,1808.3,1807.8,4.33255]
[1746441924758,1.10608,1808.2,1808.1,1.10604]
[1746441925961,1.10607,1808.1,1808.0,2.67301]
[1746441926162,1.10617,1808.0,1807.9,1.10615]
[1746441926357,1.1062,1807.9,1807.8,6.49611]
[1746441926556,1.10626,1807.8,1807.7,2.60277]
[1746441927262,2.62724,1807.9,1807.8,1.10626]
[1746441927466,1.10617,1808.0,1807.9,1.1062]
[1746441927854,1.10611,1808.1,1808.0,1.10607]
[1746441928959,2.62707,1808.2,1808.1,1.10607]
[1746441929464,4.6527,1808.3,1808.1,1.10607]
[1746441929659,5.7587,1808.3,1808.2,1.10601]
[1746441930163,5.7587,1808.3,1808.2,41.90601]
[1746441930360,5.7587,1808.3,1808.2,40.8]
[1746441931563,10.7587,1808.3,1808.2,40.8]
[1746441931958,14.5807,1808.3,1808.2,40.8]
[1746441932569,20.4047,1808.3,1808.2,40.8]
[1746441934364,1.10632,1807.7,1807.6,1.10635]
[1746441935160,2.83352,1807.7,1807.6,1.10635]
[1746441935368,2.83352,1807.7,1807.6,41.90635]
[1746441939681,1.7272,1807.7,1807.6,41.90635]
[1746441939974,2.83352,1807.7,1807.6,41.90635]
[1746441942278,1.7272,1807.7,1807.6,41.90635]
[1746441942676,1.7272,1807.7,1807.6,43.52565]
[1746441942878,1.10623,1807.9,1807.8,1.10626]
[1746441943068,2.73473,1807.9,1807.8,1.10626]
[1746441943272,2.7347,1807.9,1807.8,1.10626]
[1746441944278,1.6285,1807.9,1807.8,1.10626]
[1746441944575,4.62,1808.2,1808.1,1.10607]
[1746441944780,4.8363,1808.2,1808.1,1.10607]
[1746441945168,4.8363,1808.2,1808.1,2.58127]
[1746441945775,5.94231,1808.2,1808.1,2.58127]
[1746441946181,1.10607,1808.1,1808.0,1.6884]
[1746441946478,2.71617,1808.1,1808.0,1.6884]
[1746441947176,2.71617,1808.1,1808.0,1.10609]
[1746441949184,1.10613,1808.0,1807.9,1.10615]
[1746441949386,2.83103,1808.0,1807.9,1.10615]
[1746441949888,1.10611,1808.1,1808.0,1.10613]
[1746441950075,2.83101,1808.1,1808.0,1.10613]
[1746441952395,2.83097,1808.1,1808.0,1.10613]
[1746441952689,1.7249,1808.1,1808.0,1.10613]
[1746441952999,2.83097,1808.1,1808.0,1.10613]
[1746441953291,1.106,1808.3,1808.2,1.10595]
[1746441953492,2.7959,1808.3,1808.2,1.10595]
[1746441953887,1.106,1808.3,1808.2,1.10595]
[1746441954192,7.92171756,1808.4,1808.3,1.10595]
[1746441954383,1.10595,1808.3,1808.2,2.75226]
[1746441954588,2.67585,1808.3,1808.2,2.75226]
[1746441954794,2.67585,1808.3,1808.2,43.55226]
[1746441955592,2.67585,1808.3,1808.2,40.8]
[1746441955793,5.65295,1808.3,1808.2,40.8]
[1746441956996,5.65295,1808.3,1808.2,41.90601]
[1746441957197,4.16625,1808.3,1808.2,41.90601]
[1746441959487,3.0603,1808.3,1808.2,41.90601]
[1746441959691,4.16625,1808.3,1808.2,41.90601]
[1746441960092,2.67585,1808.3,1808.2,41.90601]
[1746441960899,1.10595,1808.3,1808.2,41.90601]
[1746441961100,2.80155,1808.3,1808.2,41.90601]
[1746441961402,2.80155,1808.3,1808.2,40.8]
[1746441961699,2.80155,1808.3,1808.2,41.90601]
[1746441963709,1.6956,1808.3,1808.2,41.90601]
[1746441963906,2.80155,1808.3,1808.2,41.90601]
[1746441964805,1.6956,1808.3,1808.2,41.90601]
[1746441965002,2.80155,1808.3,1808.2,41.90601]
[1746441966105,1.6956,1808.3,1808.2,41.90601]
[1746441966306,2.80155,1808.3,1808.2,41.90601]
[1746441966605,1.6956,1808.3,1808.2,41.90601]
[1746441967008,2.80155,1808.3,1808.2,40.8]
[1746441968501,2.80155,1808.3,1808.2,41.90601]
[1746441969608,2.80155,1808.3,1808.2,40.8]
[1746441969801,4.30125,1808.3,1808.2,40.8]
[1746441970410,7.90923756,1808.3,1808.2,40.8]
[1746441971411,7.90923756,1808.3,1808.2,41.90601]
[1746441971610,7.90923756,1808.3,1808.2,40.8]
[1746441972412,7.90923756,1808.3,1808.2,41.90601]
[1746441972708,7.90923756,1808.3,1808.2,40.8]
[1746441973611,7.90923756,1808.3,1808.2,41.90601]
[1746441975207,7.90923756,1808.3,1808.2,40.8]
[1746441975407,7.90923756,1808.3,1808.2,41.90601]
[1746441978312,6.40953756,1808.3,1808.2,41.90601]
[1746441978507,5.30358756,1808.3,1808.2,41.90601]
[1746441978709,3.60798756,1808.3,1808.2,41.90601]
[1746441978908,4.71393756,1808.3,1808.2,41.90601]
[1746441979113,6.37873756,1808.3,1808.2,40.8]
[1746441979317,6.37873756,1808.3,1808.2,41.90601]
[1746441979615,2.77075,1808.3,1808.2,41.90601]
[1746441980417,1.6648,1808.3,1808.2,41.90601]
[1746441980914,2.77075,1808.3,1808.2,43.58341]
[1746441981114,1.6648,1808.3,1808.2,43.58341]
[1746441981316,2.77075,1808.3,1808.2,43.58341]
[1746441981814,1.6648,1808.3,1808.2,43.58341]
[1746441982214,3.60798756,1808.4,1808.3,1.10595]
[1746441982521,3.60798756,1808.4,1808.3,5.81895]
[1746441982712,4.71387756,1808.4,1808.3,5.81895]
[1746441983017,6.28007756,1808.4,1808.3,5.81895]
[1746441983913,2.67209,1808.4,1808.3,5.81895]
[1746441984416,7.92162756,1808.5,1808.4,1.10589]
[1746441984608,7.92162756,1808.5,1808.4,2.82009]
[1746441984807,9.59822756,1808.5,1808.4,2.82009]
[1746441985722,9.59822756,1808.5,1808.4,1.10589]
[1746441992025,10.30349651,1808.5,1808.4,1.10589]
[1746441993024,1.10589,1808.4,1808.3,2.6487]
[1746441993225,4.22969,1808.4,1808.3,1.1059]
[1746441994826,1.10595,1808.3,1808.2,41.90596]
[1746441995023,2.79945,1808.3,1808.2,41.90596]
[1746441995918,1.6935,1808.3,1808.2,41.90596]
[1746441996621,2.79945,1808.3,1808.2,43.55646]
[1746441996820,2.79945,1808.3,1808.2,41.90596]
[1746441997219,2.79945,1808.3,1808.2,43.50956]
[1746441997422,1.6935,1808.3,1808.2,43.50956]
[1746441998329,2.79945,1808.3,1808.2,43.50956]
[1746441998520,1.6935,1808.3,1808.2,43.50956]
[1746441998720,2.79945,1808.3,1808.2,43.50956]
[1746441999219,2.79945,1808.3,1808.2,41.90596]
[1746441999416,6.00725,1808.3,1808.2,40.8]
[1746441999727,9.643024,1808.3,1808.2,40.8]
[1746442001516,13.537074,1808.3,1807.6,8.75131352]
[1746442001715,1.10632,1807.7,1807.6,7.30871352]
[1746442002526,1.10632,1807.7,1807.6,48.10871352]
[1746442003119,7.81252,1807.7,1807.6,48.10871352]
[1746442003322,7.81252,1807.7,1807.6,40.8]
[1746442003733,13.63652,1807.7,1807.6,40.8]
[1746442005126,13.63652,1807.7,1807.3,7.30871352]
[1746442005127,1.1065,1807.4,1807.3,7.30871352]
[1746442005335,8.57255858,1807.4,1807.3,7.30871352]
[1746442005735,19.39655858,1807.4,1807.3,4.59908352]
[1746442006027,1.10656,1807.3,1807.2,6.56398625]
[1746442006331,6.93056,1807.3,1807.2,47.36398625]
[1746442006533,11.93056,1807.3,1807.2,47.36398625]
[1746442006933,11.93056,1807.3,1807.2,45.36398625]
[1746442007134,11.93056,1807.3,1806.9,1.5212]
[1746442007330,4.31455,1807.0,1806.9,1.5212]
[1746442007533,1.10681,1806.9,1806.8,3.2111]
[1746442007831,1.10681,1806.9,1806.8,1.6651]
[1746442008230,1.10681,1806.9,1806.8,40.8]
[1746442010935,7.0268,1807.0,1806.8,41.90683]
[1746442011137,1.10681,1806.9,1806.8,40.8]
[1746442012338,1.10681,1806.9,1806.2,5.898]
[1746442012339,16.35813,1806.9,1805.7,3.2078]
[1746442012538,1.10742,1805.9,1805.8,1.10743]
[1746442012735,1.1074,1806.0,1805.7,3.2078]
[1746442012937,1.1074,1806.0,1805.8,1.10743]
[1746442013333,3.2078,1806.1,1805.9,40.8]
[1746442013533,3.2078,1806.1,1805.9,41.90741]
[1746442013734,1.10736,1806.0,1805.9,41.90741]
[1746442014634,4.31514,1806.1,1805.9,41.90741]
[1746442015540,1.10736,1806.0,1805.9,40.8]
[1746442015729,3.2078,1806.1,1805.9,41.90742]
[1746442015930,1.10736,1806.0,1805.9,40.8]
[1746442016132,3.2078,1806.1,1805.5,3.2078]
[1746442016330,3.2078,1805.9,1805.5,1.10762]
[1746442016529,1.10751,1805.8,1805.6,1.1076]
[1746442016733,3.815,1805.9,1805.7,40.8]
[1746442016934,3.2078,1806.1,1806.0,1.10736]
[1746442017138,8.13014,1806.1,1805.7,43.56883]
[1746442017340,7.0228,1806.1,1805.7,40.8]
[1746442017543,1.10748,1805.8,1805.7,40.8]
[1746442021241,4.92348,1805.8,1805.7,40.8]
[1746442021644,0.1,1805.3,1804.7,3.2078]
[1746442021830,0.1,1805.3,1805.2,1.10785]
[1746442022036,0.1,1805.3,1805.2,41.90785]
[1746442022342,1.20779,1805.3,1805.2,40.8]
[1746442023038,4.41559,1805.3,1805.2,40.8]
[1746442023438,3.3078,1805.3,1805.2,41.90785]
[1746442023836,1.10797,1805.0,1804.3,1.10839]
[1746442024032,0.1,1804.8,1803.9,3.2078]
[1746442024234,0.1,1804.8,1804.2,3.2078]
[1746442024444,1.20815,1804.8,1804.5,1.10825]
[1746442024639,0.1,1804.8,1804.5,1.10825]
[1746442024830,1.20814,1804.8,1804.5,1.10825]
[1746442025034,1.10831,1804.5,1804.3,40.8]
[1746442025235,1.1083,1804.5,1804.3,40.8]
[1746442025432,2.87027,1804.8,1804.4,3.2078]
[1746442025433,0.1,1804.8,1804.4,3.2078]
[1746442025743,1.10816,1804.7,1804.6,1.1082]
[1746442025947,1.20813,1804.8,1804.6,1.1082]
[1746442026142,0.1,1804.8,1804.4,9.79564]
[1746442026336,0.1,1804.8,1803.4,0.4334116]
[1746442026549,3.2078,1803.9,1803.5,1.10886]
[1746442026745,3.2078,1803.9,1803.5,3.2078]
[1746442026947,3.2078,1803.9,1803.6,40.8]
[1746442027154,1.10871,1803.8,1803.6,41.9088]
[1746442027355,3.2078,1803.9,1803.6,44.862]
[1746442027655,3.2078,1803.9,1803.8,1.10871]
[1746442028151,3.2078,1803.9,1803.6,44.0078]
[1746442028455,3.3078,1804.2,1803.6,40.8]
[1746442028653,3.3078,1804.2,1804.0,1.10857]
[1746442028849,3.3078,1804.2,1803.9,1.10861]
[1746442029156,3.3078,1804.2,1803.9,1.10865]
[1746442029157,3.2078,1804.0,1803.9,1.10865]
[1746442029559,1.10877,1803.7,1803.6,40.7]
[1746442029754,4.3165,1803.9,1803.7,1.10872]
[1746442029956,1.10871,1803.8,1803.6,40.7]
[1746442030152,3.2078,1803.9,1803.6,40.7]
[1746442030353,4.31657,1803.7,1803.6,40.7]
[1746442031257,3.2078,1803.7,1803.6,40.7]